Workbook

Sheet WACC
F4: Rf | G4: 0.0173
F5: Beta | G5: 0.66
F6: MRP | G6: 0.06
F8: Adjusted Beta | G8: =2/3*G5+1/3 -> 0.7733333333
F10: Rs | G10: =G4+G5*G6 -> 0.0569
F12: Cost of Debt | I12: Tax Rate | J12: ='Income Statement'!D32 -> 0.246159041
F14: Interest Expense | G14: ='Income Statement'!D18 -> 626000
F15: Average Net Debt | G15: ='Balance Sheet'!D47 -> 32883500
F17: Rd | G17: =G14/G15 -> 0.01903690301 | I17: rd(1-t) | J17: =G17*(1-J12) -> 0.01435079722
F19: WACC | H19: Weights
F20: Total Debt | G20: 30.35 | H20: =G20/G22 -> 0.1202075412
F21: Total Equity (MV) | G21: 222.13 | H21: =G21/G22 -> 0.8797924588
F22: Total | G22: =G21+G20 -> 252.48
F24: WACC | G24: =H20*J17+G10*H21 -> 0.05178526495

Sheet Income Statement
C2: Gross Profit Margin | D2: =D7/D5 -> 0.4903446558 | E2: =E7/E5 -> 0.4906222829 | F2: 0.5008362874
C4: Period Ending | D4: 2015-06-30 | E4: 2014-06-30 | F4: 2013-06-30
C5: Total Revenue | D5: 76279000 | E5: 80510000 | F5: 80116000
C6: Cost of Revenue | D6: 38876000 | E6: 41010000 | F6: 39991000
C7: Gross Profit | D7: 37403000 | E7: 39500000 | F7: 40125000
C8: Operating Expenses
C9: Research Development | D9: - | E9: - | F9: -
C10: Selling General and Administrative | D10: 25613000 | E10: 24760000 | F10: 26000000
C11: Non Recurring | D11: - | E11: - | F11: 308000
C12: Others | D12: - | E12: - | F12: -
C13: Total Operating Expenses | D13: - | E13: - | F13: -
C14: Operating Income or Loss | D14: 11790000 | E14: 14740000 | F14: 13817000
C15: Income from Continuing Operations
C16: Total Other Income/Expenses Net | D16: 682000 | E16: 307000 | F16: 1029000
C17: Earnings Before Interest And Taxes | D17: 12472000 | E17: 15047000 | F17: 14846000
C18: Interest Expense | D18: 626000 | E18: 710000 | F18: 667000
C19: Income Before Tax | D19: 11846000 | E19: 14337000 | F19: 14179000
C20: Income Tax Expense | D20: 2916000 | E20: 3019000 | F20: 3226000
C21: Minority Interest | D21: -108000 | E21: -142000 | F21: -90000
C22: Net Income From Continuing Ops | D22: 8930000 | E22: 11318000 | F22: 10953000
C23: Non-recurring Events
C24: Discontinued Operations | D24: -1786000 | E24: 467000 | F24: 449000
C25: Extraordinary Items | D25: - | E25: - | F25: -
C26: Effect Of Accounting Changes | D26: - | E26: - | F26: -
C27: Other Items | D27: - | E27: - | F27: -
C28: Net Income | D28: 7036000 | E28: 11643000 | F28: 11312000
C29: Preferred Stock And Other Adjustments | D29: - | E29: - | F29: -
C30: Net Income Applicable To Common Shares | D30: 7036000 | E30: 11643000 | F30: 11312000
C32: Tax Rate | D32: =D20/D19 -> 0.246159041 | E32: =E20/E19 -> 0.2105740392 | F32: 0.2275195712
C34: ROE | D34: =D28/'Balance Sheet'!D42 -> 0.1127220878 | E34: =E28/'Balance Sheet'!E42 -> 0.1682174127 | F34: =F28/'Balance Sheet'!F42 -> 0.1661965209

Sheet Balance Sheet
C4: Period Ending | D4: 2015-06-30 | E4: 2014-06-30 | F4: 2013-06-30
C5: Assets
C6: Current Assets
C7: Cash And Cash Equivalents | D7: 6845000 | E7: 8558000 | F7: 5947000
C8: Short Term Investments | D8: 4767000 | E8: 2128000 | F8: -
C9: Net Receivables | D9: 6217000 | E9: 7478000 | F9: 7456000
C10: Inventory | D10: 5454000 | E10: 6759000 | F10: 6909000
C11: Other Current Assets | D11: 6363000 | E11: 6694000 | F11: 3678000
C12: Total Current Assets | D12: 29646000 | E12: 31617000 | F12: 23990000
C13: Long Term Investments | D13: - | E13: - | F13: -
C14: Property Plant and Equipment | D14: 20268000 | E14: 22304000 | F14: 21666000
C15: Goodwill | D15: 47316000 | E15: 53704000 | F15: 55188000
C16: Intangible Assets | D16: 26829000 | E16: 30843000 | F16: 31572000
C17: Accumulated Amortization | D17: - | E17: - | F17: -
C18: Other Assets | D18: 5436000 | E18: 5798000 | F18: 6847000
C19: Deferred Long Term Asset Charges | D19: - | E19: - | F19: -
C20: Total Assets | D20: 129495000 | E20: 144266000 | F20: 139263000
C21: Liabilities
C22: Current Liabilities
C23: Accounts Payable | D23: 16582000 | E23: 17460000 | F23: 17605000
C24: Short/Current Long Term Debt | D24: 12021000 | E24: 15606000 | F24: 12432000
C25: Other Current Liabilities | D25: 1187000 | E25: 660000 | F25: -
C26: Total Current Liabilities | D26: 29790000 | E26: 33726000 | F26: 30037000
C27: Long Term Debt | D27: 18329000 | E27: 19811000 | F27: 19111000
C28: Other Liabilities | D28: 8795000 | E28: 10535000 | F28: 10579000
C29: Deferred Long Term Liability Charges | D29: 9531000 | E29: 10218000 | F29: 10827000
C30: Minority Interest | D30: 631000 | E30: 762000 | F30: 645000
C31: Negative Goodwill | D31: - | E31: - | F31: -
C32: Total Liabilities | D32: 67076000 | E32: 75052000 | F32: 71199000
C33: Stockholders' Equity
C34: Misc Stocks Options Warrants | D34: - | E34: - | F34: -
C35: Redeemable Preferred Stock | D35: - | E35: - | F35: -
C36: Preferred Stock | D36: 1077000 | E36: 1111000 | F36: 1137000
C37: Common Stock | D37: 4009000 | E37: 4009000 | F37: 4009000
C38: Retained Earnings | D38: 84807000 | E38: 84990000 | F38: 80197000
C39: Treasury Stock | D39: -77226000 | E39: -75805000 | F39: -71966000
C40: Capital Surplus | D40: 63852000 | E40: 63911000 | F40: 63538000
C41: Other Stockholder Equity | D41: -14100000 | E41: -9002000 | F41: -8851000
C42: Total Stockholder Equity | D42: 62419000 | E42: 69214000 | F42: 68064000
C43: Net Tangible Assets | D43: -11726000 | E43: -15333000 | F43: -18696000
C45: Total Debt | D45: =D27+D24 -> 30350000 | E45: =E27+E24 -> 35417000
C47: Average Debt | D47: =AVERAGE(D45:E45) -> 32883500

Sheet FCFF
C3: Period Ending | D3: 2015-06-30 | E3: 2014-06-30 | F3: 2013-06-30
C4: Net Income | D4: 7036000 | E4: 11643000 | F4: 11312000
C5: Operating Activities, Cash Flows Provided By or Used In
C6: Depreciation | D6: 3134000 | E6: 3141000 | F6: 2982000
C7: Adjustments To Net Income | D7: 2970000 | E7: 162000 | F7: -569000
C8: Changes In Accounts Receivables | D8: 349000 | E8: 87000 | F8: -415000
C9: Changes In Liabilities | D9: 928000 | E9: 1000 | F9: 1253000
C10: Changes In Inventories | D10: 313000 | E10: 8000 | F10: -225000
C11: Changes In Other Operating Activities | D11: -230000 | E11: -1226000 | F11: 445000
C12: Total Cash Flow From Operating Activities | D12: 14608000 | E12: 13958000 | F12: 14873000
C13: Investing Activities, Cash Flows Provided By or Used In
C14: Capital Expenditures | D14: -3736000 | E14: -3848000 | F14: -4008000
C15: Investments | D15: -2607000 | E15: -805000 | F15: -1726000
C16: Other Cash flows from Investing Activities | D16: 3452000 | E16: 546000 | F16: -561000
C17: Total Cash Flows From Investing Activities | D17: -2891000 | E17: -4107000 | F17: -6295000
C18: Financing Activities, Cash Flows Provided By or Used In
C19: Dividends Paid | D19: -7287000 | E19: -6911000 | F19: -6519000
C20: Sale Purchase of Stock | D20: -1778000 | E20: -3911000 | F20: -2537000
C21: Net Borrowings | D21: -3954000 | E21: 3543000 | F21: 1985000
C22: Other Cash Flows from Financing Activities | D22: - | E22: - | F22: -
C23: Total Cash Flows From Financing Activities | D23: -13019000 | E23: -7279000 | F23: -7071000
C24: Effect Of Exchange Rate Changes | D24: -411000 | E24: 39000 | F24: 4000
C25: Change In Cash and Cash Equivalents | D25: -1713000 | E25: 2611000 | F25: 1511000
C27: CFO | D27: =D12 -> 14608000 | E27: =E12 -> 13958000 | F27: 14873000
C28: + Interest (1-T) | D28: ='Income Statement'!D18*(1-'Income Statement'!D32) -> 471904.4403 | E28: ='Income Statement'!E18*(1-'Income Statement'!E32) -> 560492.4322 | F28: ='Income Statement'!F18*(1-'Income Statement'!F32) -> 515244.446
C29: - Capital Exp | D29: =D14 -> -3736000 | E29: =E14 -> -3848000 | F29: -4008000
C30: FCFF | D30: =SUM(D27:D29) -> 11343904.44 | E30: =SUM(E27:E29) -> 10670492.43 | F30: 11380244.45
C32: G | D32: 0.018
C33: WACC | D33: =WACC!G24 -> 0.05178526495
C35: Firm's Value | D35: =D30*(1+D32)/(D33-D32) -> 341808617.9
C36: Deduct Debt | D36: =-'Balance Sheet'!D45 -> -30350000
C37: Deduce Pref. Stock | D37: =-'Balance Sheet'!D36 -> -1077000
C38: Add Cash and Cash Equiv. | D38: ='Balance Sheet'!D7 -> 6845000
C39: minority Interest | D39: =-'Balance Sheet'!D30 -> -631000
C40: Total Equity | D40: =1000*SUM(D35:D39) -> 3.165956179e+11
C42: Shares Outstanding | D42: =2700000000 -> 2700000000
C44: Equity | D44: =D40/D42 -> 117.2576363
C47: =D44 -> 117.2576363 | D47: 0.01 | E47: 0.015 | F47: 0.02 | G47: 0.02 | H47: 0.025 | I47: 0.03
C48: 0.05 | D48: 96.7483656 | E48: 112.5037884 | F48: 133.5110189 | G48: 133.5110189 | H48: 162.9211415 | I48: 207.0363254
C49: 0.055 | D49: 84.96097518 | E49: 97.27354636 | F49: 113.103995 | G49: 113.103995 | H49: 134.2112599 | I49: 163.7614307
C50: 0.06 | D50: 75.53106285 | E50: 85.42780253 | F50: 97.79872712 | G50: 97.79872712 | H50: 113.7042016 | I50: 134.9115009
C51: 0.065 | D51: 67.81568003 | E51: 75.95120746 | F51: 85.89462987 | G51: 85.89462987 | H51: 98.32390788 | I51: 114.3044082
C52: 0.07 | D52: 61.38619435 | E52: 68.19762968 | F52: 76.37135207 | G52: 76.37135207 | H52: 86.36145721 | I52: 98.84908864
C53: 0.075 | D53: 55.94586031 | E53: 61.73631486 | F53: 68.57957932 | G53: 68.57957932 | H53: 76.79149668 | I53: 86.82828456
C54: 0.08 | D54: 51.28271685 | E54: 56.26904847 | F54: 62.08643536 | G54: 62.08643536 | H54: 68.96152897 | I54: 77.21164129
